[Event "SVK ECo-C Extraliga 2018-19"]
[Site "Slovakia"]
[Date "2018.11.11"]
[Round "2"]
[White "Mydlarik, Martin"]
[Black "Kovacik, Emil"]
[Result "1/2-1/2"]
[ECO "A13"]
[WhiteElo "2110"]
[BlackElo "2060"]
[Annotator "NA"]
[PlyCount "44"]
[EventDate "2018.11.10"]
[EventType "team-tourn"]
[EventCountry "SVK"]
[SourceTitle "playchess.com"]
[Source "ChessBase"]
[SourceQuality "1"]
[WhiteTeam "Modra"]
[BlackTeam "Dubnica"]
[TimeControl "40/5400+30:1800+30"]

1. c4 {[%emt 0:00:00]} e6 {[%emt 0:00:00]} 2. g3 {[%emt 0:00:00]} d5 {[%emt 0:00:03]} 3. Bg2 {[%emt 0:00:00]} Nf6 {[%emt 0:00:07]} 4. Nf3 {[%emt 0:00:28]} dxc4 {[%emt 0:01:43]} 5. Qa4+ {[%emt 0:00:22]} Nbd7 {[%emt 0:04:17]} 6. Qxc4 {[%emt 0:00:53]} c5 {[%emt 0:01:21]} 7. d3 {[%emt 0:04:04]} a6 {[%emt 0:02:47]} 8. Qc2 {[%emt 0:05:50]} Ra7 {[%emt 0:00:57]} 9. O-O {[%emt 0:01:04]} b6 {[%emt 0:00:43]} 10. Nbd2 {[%emt 0:10:19]} Bb7 {[%emt 0:00:38]} 11. Nc4 {[%emt 0:04:30]} Be7 {[%emt 0:02:19]} 12. Bf4 {[%emt 0:00:24]} O-O {[%emt 0:02:01]} 13. Rac1 {[%emt 0:06:13]} Nd5 {[%emt 0:07:09]} 14. Bd2 {[%emt 0:01:09]} Qa8 {[%emt 0:01:36]} 15. a3 {[%emt 0:03:14]} a5 {[%emt 0:07:10]} 16. a4 {[%emt 0:17:58]} Nb4 {[%emt 0:04:48]} 17. Qb1 {[%emt 0:01:55]} Bc6 {[%emt 0:02:37]} 18. b3 {[%emt 0:02:37]} Rd8 {[%emt 0:11:27]} 19. Bc3 {[%emt 0:05:23]} Nd5 {[%emt 0:19:41]} 20. Bb2 {[%emt 0:02:29]} Bf6 {[%emt 0:01:22]} 21. Bxf6 {[%emt 0:01:20]} N5xf6 {[%emt 0:00:23]} 22. Qb2 {[%emt 0:04:11]} Rc7 {[%emt 0:09:38]} 1/2-1/2

[Event "SVK ECo-C Extraliga 2018-19"]
[Site "Slovakia"]
[Date "2018.12.08"]
[Round "3"]
[White "Manik, Mikulas"]
[Black "Chovan, Milan"]
[Result "1-0"]
[ECO "C78"]
[WhiteElo "2404"]
[BlackElo "2332"]
[Annotator "NA"]
[PlyCount "67"]
[EventDate "2018.11.10"]
[EventType "team-tourn"]
[EventCountry "SVK"]
[SourceTitle "playchess.com"]
[Source "ChessBase"]
[SourceQuality "1"]
[WhiteTeam "Prakovce"]
[BlackTeam "Podhajska"]
[TimeControl "40/5400+30:1800+30"]

1. e4 {[%emt 0:00:00]} e5 {[%emt 0:00:00]} 2. Nf3 {[%emt 0:00:00]} Nc6 {[%emt 0:00:00]} 3. Bb5 {[%emt 0:00:00]} a6 {[%emt 0:00:00]} 4. Ba4 {[%emt 0:00:00]} Nf6 {[%emt 0:00:00]} 5. O-O {[%emt 0:00:00]} b5 {[%emt 0:00:00]} 6. Bb3 {[%emt 0:00:00]} Bb7 {[%emt 0:00:01]} 7. Nc3 {[%emt 0:00:13]} Be7 {[%emt 0:02:03]} 8. d3 {[%emt 0:00:53]} O-O {[%emt 0:00:11]} 9. Bd2 {[%emt 0:02:28]} d6 {[%emt 0:00:25]} 10. Nd5 {[%emt 0:02:15]} Nxd5 {[%emt 0:02:15]} 11. Bxd5 {[%emt 0:00:12]} Qc8 {[%emt 0:00:36]} 12. Re1 {[%emt 0:06:21]} Bf6 {[%emt 0:04:11]} 13. Bg5 {[%emt 0:10:55]} Bxg5 {[%emt 0:13:36]} 14. Nxg5 {[%emt 0:00:10]} g6 {[%emt 0:00:56]} 15. c3 {[%emt 0:18:49]} h6 {[%emt 0:06:54]} 16. Nf3 {[%emt 0:02:34]} Kg7 {[%emt 0:07:47]} 17. d4 {[%emt 0:02:41]} Re8 {[%emt 0:02:24]} 18. Rc1 {[%emt 0:04:54]} Na5 {[%emt 0:13:34]} 19. Bxb7 {[%emt 0:03:08]} Qxb7 {[%emt 0:00:08]} 20. b3 {[%emt 0:00:07]} Qb6 {[%emt 0:06:22]} 21. Re3 {[%emt 0:03:31]} Rad8 {[%emt 0:01:31]} 22. d5 {[%emt 0:02:44]} c6 {[%emt 0:00:40]} 23. Nh4 {[%emt 0:04:27]} cxd5 {[%emt 0:00:11]} 24. exd5 {[%emt 0:03:06]} Qc7 {[%emt 0:02:20]} 25. Rg3 {[%emt 0:07:01]} Kh7 {[%emt 0:01:55]} 26. Qd2 {[%emt 0:04:10]} Qd7 {[%emt 0:08:00]} 27. c4 {[%emt 0:05:14]} Nb7 {[%emt 0:00:50]} 28. cxb5 {[%emt 0:00:08]} axb5 {[%emt 0:00:14]} 29. Rh3 {[%emt 0:00:31]} g5 {[%emt 0:04:56]} 30. Rc7 {[%emt 0:03:49]} Qxc7 {[%emt 0:00:04]} 31. Nf5 {[%emt 0:00:09]} Kg6 {[%emt 0:00:16]} 32. Rxh6+ {[%emt 0:01:04]} Kxf5 {[%emt 0:00:06]} 33. g4+ {[%emt 0:00:10]} Kxg4 {[%emt 0:02:10]} 34. Qe2+ {[%emt 0:00:24]} 1-0

[Event "SVK ECo-C Extraliga 2018-19"]
[Site "Slovakia"]
[Date "2018.12.08"]
[Round "3"]
[White "Rojicek, Vojtech"]
[Black "Motuz, Karol"]
[Result "1/2-1/2"]
[ECO "A13"]
[WhiteElo "2389"]
[BlackElo "2367"]
[Annotator "NA"]
[PlyCount "40"]
[EventDate "2018.11.10"]
[EventType "team-tourn"]
[EventCountry "SVK"]
[SourceTitle "playchess.com"]
[Source "ChessBase"]
[SourceQuality "1"]
[WhiteTeam "Liptovska"]
[BlackTeam "Dubnica"]
[TimeControl "40/5400+30:1800+30"]

1. c4 {[%emt 0:01:13]} Nf6 {[%emt 0:01:30]} 2. g3 {[%emt 0:03:28]} e6 {[%emt 0:01:22]} 3. Bg2 {[%emt 0:00:14]} d5 {[%emt 0:00:14]} 4. Nf3 {[%emt 0:04:55]} dxc4 {[%emt 0:01:54] LiveBook: 3496 Games} 5. Qa4+ {[%emt 0:00:16]} Nbd7 {[%emt 0:01:34]} 6. Qxc4 {[%emt 0:00:14]} a6 {[%emt 0:01:45]} 7. Qc2 {[%emt 0:00:07]} c5 {[%emt 0:02:38]} 8. O-O {[%emt 0:00:19]} b5 {[%emt 0:06:00]} 9. a4 {[%emt 0:01:54]} Bb7 {[%emt 0:01:39]} 10. axb5 {[%emt 0:05:17]} axb5 {[%emt 0:00:09]} 11. Rxa8 {[%emt 0:00:06]} Qxa8 {[%emt 0:01:04]} 12. Na3 {[%emt 0:00:09]} Bc6 {[%emt 0:08:01] A13: English Opening: 1...e6} 13. d3 {[%emt 0:00:28]} (13. Ne1 Nd5 14. d4 Be7 15. dxc5 Nxc5 16. Bxd5 exd5 17. Nd3 Nxd3 18. Qxd3 b4 19. Nc2 O-O 20. Bd2 {½-½ (30) Van Foreest,J (2640)-Christiansen,J (2506) Pardubice 2018}) 13... Be7 {[%emt 0:00:26]} 14. Bd2 {[%emt 0:00:12]} O-O {[%emt 0:00:29]} 15. Rc1 {[%emt 0:00:08]} Rc8 {[%emt 0:02:26]} 16. Ne1 {[%emt 0:02:29]} Nd5 {[%emt 0:06:44]} 17. Qb3 $146 {[%emt 0:00:25]} ({Predecessor:} 17. Qb1 Bf6 18. Nac2 Qa4 19. e4 N5b6 20. Ne3 {0-1 (66) Frisk,E (2302)-Bekker Jensen,S (2442) Borup 2014}) 17... Qb7 {[%emt 0:02:46]} 18. Nc4 {[%emt 0:04:17]} bxc4 {[%emt 0:03:12]} 19. Qxb7 {[%emt 0:00:08]} Bxb7 {[%emt 0:00:03]} 20. dxc4 $11 {[%emt 0:00:08]} Rb8 {[%emt 0:07:42]} 1/2-1/2

[Event "SVK ECo-C Extraliga 2018-19"]
[Site "Slovakia"]
[Date "2018.12.08"]
[Round "3"]
[White "Bures, Jaroslav"]
[Black "Gasa, Andrej"]
[Result "1-0"]
[ECO "B95"]
[WhiteElo "2388"]
[BlackElo "2288"]
[Annotator "NA"]
[PlyCount "97"]
[EventDate "2018.11.10"]
[EventType "team-tourn"]
[EventCountry "SVK"]
[SourceTitle "playchess.com"]
[Source "ChessBase"]
[SourceQuality "1"]
[WhiteTeam "Slovan"]
[BlackTeam "Osuske"]
[TimeControl "40/5400+30:1800+30"]

1. e4 {[%emt 0:00:00]} c5 {[%emt 0:00:00]} 2. Nf3 {[%emt 0:00:00]} d6 {[%emt 0:00:00]} 3. d4 {[%emt 0:00:01]} cxd4 {[%emt 0:00:00]} 4. Nxd4 {[%emt 0:00:02]} Nf6 {[%emt 0:00:00]} 5. Nc3 {[%emt 0:00:02]} a6 {[%emt 0:00:01]} 6. Bg5 {[%emt 0:00:03]} e6 {[%emt 0:00:07]} 7. Qf3 {[%emt 0:00:01]} Be7 {[%emt 0:03:04]} 8. O-O-O {[%emt 0:00:31]} Qc7 {[%emt 0:00:14]} 9. Qg3 {[%emt 0:02:05] LiveBook: 25 Games} Nc6 {[%emt 0:01:49] B95: Sicilian Najdorf: 6 Bg5 e6, unusual White 7th moves} (9... Bd7 10. f4 h6 11. Bh4 Nc6 12. Be2 O-O-O 13. f5 Rhg8 14. Qh3 Nxd4 15. Rxd4 Kb8 16. Rhd1 Ka8 17. Bf2 Rc8 18. Kb1 d5 19. exd5 Nxd5 20. Rxd5 exd5 21. Rxd5 {½-½ (36) Kosteniuk,A (2542)-Ushenina,A (2458) Khanty-Mansiysk 2017}) 10. Bxf6 {[%emt 0:04:53]} gxf6 {[%emt 0:11:39]} 11. Qg7 $146 {[%emt 0:00:05]} ({Predecessor:} 11. f4 Nxd4 12. Rxd4 b5 13. Be2 Bd7 14. Qg7 Rf8 15. Qxh7 Rb8 16. Qh5 Qb6 17. Rhd1 {1-0 (49) Sharma,D (2365)-Hemant,S (2237) Bhiwani 2010}) 11... Rf8 {[%emt 0:00:06]} 12. Qxh7 {[%emt 0:07:03]} Nxd4 {[%emt 0:00:55]} 13. Rxd4 {[%emt 0:00:05]} Qc5 {[%emt 0:00:04]} 14. Rd2 {[%emt 0:00:08]} b5 {[%emt 0:01:23]} 15. h4 {[%emt 0:07:17]} Bb7 {[%emt 0:03:40]} 16. f3 {[%emt 0:06:30]} b4 {[%emt 0:05:20]} 17. Nd1 $1 {[%emt 0:00:19]} a5 {[%emt 0:00:25]} 18. Qh6 {[%emt 0:01:07]} O-O-O {[%emt 0:06:31]} 19. Ne3 {[%emt 0:13:32]} Kb8 {[%emt 0:01:51]} 20. Ng4 {[%emt 0:01:48]} f5 {[%emt 0:01:15]} 21. exf5 {[%emt 0:00:37]} Qxf5 {[%emt 0:00:21]} 22. Bd3 {[%emt 0:02:48]} Qc5 {[%emt 0:00:06]} 23. Qg7 {[%emt 0:01:58]} Qh5 {[%emt 0:03:40]} 24. Nh6 {[%emt 0:07:23]} Rde8 {[%emt 0:04:24]} 25. g4 {[%emt 0:09:17]} Qd5 {[%emt 0:12:06]} 26. Kb1 {[%emt 0:13:59]} Qxf3 {[%emt 0:03:48]} 27. Rf1 {[%emt 0:00:12]} Qe3 {[%emt 0:00:07]} 28. Rdf2 {[%emt 0:04:18]} Bxh4 {[%emt 0:03:04]} 29. Rxf7 {[%emt 0:00:04]} Rxf7 {[%emt 0:00:39]} 30. Nxf7 {[%emt 0:00:01]} Bg3 {[%emt 0:05:12]} 31. Nxd6 {[%emt 0:01:38]} Bxd6 {[%emt 0:00:51]} 32. Qd7 {[%emt 0:00:06]} Rg8 {[%emt 0:04:21]} 33. Qxd6+ {[%emt 0:00:10]} Ka7 {[%emt 0:00:53]} 34. Qc7 {[%emt 0:03:00]} Rg5 {[%emt 0:01:31]} 35. b3 {[%emt 0:02:05]} Qd4 {[%emt 0:05:12]} 36. Rf7 {[%emt 0:03:14]} Qg1+ {[%emt 0:05:39]} 37. Bf1 {[%emt 0:00:07]} Qb6 {[%emt 0:02:25]} 38. Qg3 {[%emt 0:04:28]} Qd4 {[%emt 0:03:11]} 39. Be2 {[%emt 0:00:03]} e5 {[%emt 0:00:54]} 40. Qh2 {[%emt 0:04:32]} e4 {[%emt 0:06:55]} 41. Qh6 {[%emt 0:32:46]} Qg1+ {[%emt 0:34:17]} 42. Bf1 {[%emt 0:00:04]} Rb5 {[%emt 0:00:27]} 43. Qc1 {[%emt 0:01:41]} Rb6 {[%emt 0:00:42]} 44. Qg5 {[%emt 0:00:00]} Qd4 {[%emt 0:00:00]} 45. Qxa5+ {[%emt 0:00:00]} Kb8 {[%emt 0:00:00]} 46. Be2 {[%emt 0:00:00]} Ba6 {[%emt 0:00:00]} 47. Rd7 {[%emt 0:00:00]} Qe3 {[%emt 0:00:00]} 48. Qe5+ {[%emt 0:00:00]} Ka8 {[%emt 0:00:00]} 49. Bxa6 {[%emt 0:00:00]} 1-0

[Event "SVK ECo-C Extraliga 2018-19"]
[Site "Slovakia"]
[Date "2018.12.08"]
[Round "3"]
[White "Csonka, Attila"]
[Black "Banas, Kamil"]
[Result "1-0"]
[ECO "B18"]
[WhiteElo "2352"]
[BlackElo "2248"]
[Annotator "NA"]
[PlyCount "53"]
[EventDate "2018.11.10"]
[EventType "team-tourn"]
[EventCountry "SVK"]
[SourceTitle "playchess.com"]
[Source "ChessBase"]
[SourceQuality "1"]
[WhiteTeam "Streda"]
[BlackTeam "Modra"]
[TimeControl "40/5400+30:1800+30"]

1. e4 {[%emt 0:00:00]} c6 {[%emt 0:01:10]} 2. d4 {[%emt 0:00:00]} d5 {[%emt 0:00:03]} 3. Nc3 {[%emt 0:00:00]} dxe4 {[%emt 0:00:03]} 4. Nxe4 {[%emt 0:00:00]} Bf5 {[%emt 0:00:01]} 5. Ng3 {[%emt 0:00:01]} Bg6 {[%emt 0:00:01]} 6. h4 {[%emt 0:00:09]} h6 {[%emt 0:00:03]} 7. Nh3 {[%emt 0:00:05]} e6 {[%emt 0:02:46]} 8. Nf4 {[%emt 0:00:10]} Bh7 $1 {[%emt 0:00:35]} 9. Bc4 {[%emt 0:00:07]} Nf6 {[%emt 0:02:44]} 10. O-O {[%emt 0:01:49]} Bd6 {[%emt 0:03:44]} 11. c3 {[%emt 0:04:05] LiveBook: 6 Games B18: Classical Caro-Kann: 4...Bf5 sidelines} (11. Nxe6 fxe6 12. Bxe6 Qc7 13. Re1 Nbd7 14. Bh3+ Kd8 15. Nf5 Bxf5 16. Bxf5 Bh2+ 17. Kh1 Bf4 18. Qf3 Bxc1 19. Raxc1 {0-1 (32) Christiansen,J (2495)-Eljanov,P (2711) Riadh 2017}) 11... Qc7 {[%emt 0:05:17]} 12. Ngh5 {[%emt 0:04:29]} Nxh5 {[%emt 0:02:10]} 13. Nxh5 {[%emt 0:00:09]} O-O {[%emt 0:03:51]} (13... Rg8 $1 $11) 14. Qg4 {[%emt 0:02:53]} Bg6 {[%emt 0:01:30]} 15. Nxg7 {[%emt 0:00:39]} Kxg7 {[%emt 0:01:04]} 16. h5 {[%emt 0:00:06]} Nd7 {[%emt 0:09:46]} 17. hxg6 {[%emt 0:02:52]} fxg6 {[%emt 0:00:20]} 18. Qxe6 $146 {[%emt 0:05:26]} ({Predecessor:} 18. Bxe6 Nf6 {½-½ (34) Gerber,H (1630)-Billing,O (1486) Augsburg 2003}) 18... Nf6 {[%emt 0:01:17]} 19. Qh3 {[%emt 0:01:46]} Nh5 {[%emt 0:01:52]} 20. Be3 {[%emt 0:03:56]} Nf4 {[%emt 0:02:33]} 21. Bxf4 {[%emt 0:01:29]} Rxf4 {[%emt 0:00:15]} 22. Rae1 {[%emt 0:00:59]} Rf5 {[%emt 0:04:18]} 23. Re6 {[%emt 0:02:04]} Raf8 {[%emt 0:03:02]} 24. Bd3 {[%emt 0:06:13]} Rg5 {[%emt 0:02:09]} 25. Rfe1 $18 {[%emt 0:03:54]} Rf4 {[%emt 0:06:59]} 26. R1e4 {[%emt 0:05:00]} Rf8 {[%emt 0:08:29]} 27. Rg4 {[%emt 0:01:05]} 1-0

[Event "SVK ECo-C Extraliga 2018-19"]
[Site "Slovakia"]
[Date "2018.12.08"]
[Round "3"]
[White "Jurcik, Martin"]
[Black "Zvarik, Martin"]
[Result "1-0"]
[ECO "C44"]
[WhiteElo "2336"]
[BlackElo "2310"]
[Annotator "NA"]
[PlyCount "119"]
[EventDate "2018.11.10"]
[EventType "team-tourn"]
[EventCountry "SVK"]
[SourceTitle "playchess.com"]
[Source "ChessBase"]
[SourceQuality "1"]
[WhiteTeam "Dunajov"]
[BlackTeam "Zilina"]
[TimeControl "40/5400+30:1800+30"]

1. e4 {[%emt 0:00:00]} e5 {[%emt 0:00:00]} 2. Nf3 {[%emt 0:00:04]} Nc6 {[%emt 0:00:00]} 3. d4 {[%emt 0:00:33]} exd4 4. Nxd4 {[%emt 0:00:09]} Bc5 {[%emt 0:01:22]} 5. Nb3 {[%emt 0:00:51]} Be7 {[%emt 0:02:09]} 6. Nc3 {[%emt 0:04:21]} Nf6 {[%emt 0:00:52]} 7. g3 {[%emt 0:06:58] LiveBook: 3 Games} d6 {[%emt 0:04:24]} 8. Bg2 {[%emt 0:04:28]} h5 {[%emt 0:06:28]} 9. h3 {[%emt 0:00:44]} Be6 {[%emt 0:01:52]} 10. Be3 {[%emt 0:13:30]} Ne5 $16 {[%emt 0:09:37]} 11. Nd4 {[%emt 0:01:58]} Nc4 {[%emt 0:17:07]} 12. Bc1 {[%emt 0:05:22]} Nd7 {[%emt 0:06:54]} 13. Qe2 {[%emt 0:20:16]} Ncb6 {[%emt 0:01:15]} 14. Nd5 {[%emt 0:00:47]} Bxd5 {[%emt 0:00:30]} 15. exd5 {[%emt 0:00:30]} Kf8 {[%emt 0:00:30]} 16. f4 {[%emt 0:00:30]} Bf6 {[%emt 0:00:30]} 17. Be3 {[%emt 0:00:30]} Qe8 {[%emt 0:00:30]} 18. Nb5 {[%emt 0:16:24]} Bd8 {[%emt 0:34:56]} 19. Bd4 {[%emt 0:02:47]} Qxe2+ {[%emt 0:00:34]} 20. Kxe2 {[%emt 0:00:00]} a6 {[%emt 0:00:15]} 21. Nc3 {[%emt 0:00:10]} Bf6 {[%emt 0:00:09]} 22. Bxf6 {[%emt 0:04:56]} Nxf6 {[%emt 0:02:13]} 23. Kd3 {[%emt 0:00:11]} Rh6 {[%emt 0:01:13]} 24. Bf3 {[%emt 0:02:34]} Re8 {[%emt 0:01:52]} 25. Kd4 {[%emt 0:01:18]} Ng8 {[%emt 0:03:05]} 26. Be4 {[%emt 0:11:13]} Ne7 {[%emt 0:00:49]} 27. Nd1 {[%emt 0:01:21]} c5+ {[%emt 0:00:42]} 28. dxc6 {[%emt 0:00:41]} bxc6 {[%emt 0:00:07]} 29. c4 {[%emt 0:00:31]} d5 {[%emt 0:01:56]} 30. cxd5 {[%emt 0:00:44]} cxd5 {[%emt 0:00:10]} 31. Bd3 {[%emt 0:00:25]} Re6 {[%emt 0:01:47]} 32. Rc1 {[%emt 0:00:28]} Nc6+ {[%emt 0:00:43]} 33. Kc3 {[%emt 0:00:08]} Rb8 {[%emt 0:01:21]} 34. b3 {[%emt 0:00:27]} d4+ {[%emt 0:00:12]} 35. Kd2 {[%emt 0:00:17]} Nb4 {[%emt 0:00:20]} 36. a3 {[%emt 0:00:37]} Nxd3 {[%emt 0:00:27]} 37. Kxd3 {[%emt 0:00:01]} Nd7 {[%emt 0:00:40]} 38. b4 {[%emt 0:00:13]} a5 {[%emt 0:00:17]} 39. Rc4 {[%emt 0:00:18]} Rg6 {[%emt 0:00:57]} 40. Rg1 {[%emt 0:01:10]} axb4 41. axb4 {[%emt 0:30:33]} Ra8 {[%emt 0:04:18]} 42. Rxd4 {[%emt 0:00:00]} Ra3+ {[%emt 0:05:20]} 43. Nc3 {[%emt 0:00:00]} Nb6 {[%emt 0:01:03]} 44. b5 {[%emt 0:00:00]} f5 {[%emt 0:02:42]} 45. Kc2 {[%emt 0:00:00]} h4 {[%emt 0:00:40]} 46. g4 {[%emt 0:00:00]} Re6 {[%emt 0:03:29]} 47. Kd2 {[%emt 0:00:00]} Re8 {[%emt 0:01:41]} 48. gxf5 {[%emt 0:00:00]} Rc8 {[%emt 0:00:06]} 49. Rd3 {[%emt 0:00:00]} Rb3 {[%emt 0:00:42]} 50. Rg6 {[%emt 0:00:00]} Nc4+ {[%emt 0:00:26]} 51. Kc2 {[%emt 0:00:00]} Rb2+ {[%emt 0:01:11]} 52. Kc1 {[%emt 0:00:00]} Rf2 {[%emt 0:01:39]} 53. Rc6 {[%emt 0:01:25]} Rxc6 {[%emt 0:01:08]} 54. bxc6 {[%emt 0:00:06]} Rxf4 {[%emt 0:00:09]} 55. Rd8+ {[%emt 0:02:01]} Kf7 {[%emt 0:00:25]} 56. Nd5 {[%emt 0:00:37]} Rf1+ {[%emt 0:00:59]} 57. Kc2 {[%emt 0:00:02]} Na3+ {[%emt 0:00:06]} 58. Kb3 {[%emt 0:00:52]} Nb5 {[%emt 0:00:30]} 59. Kc4 {[%emt 0:01:37]} Rb1 {[%emt 0:00:14]} 60. Kc5 {[%emt 0:00:43]} 1-0

[Event "SVK ECo-C Extraliga 2018-19"]
[Site "Slovakia"]
[Date "2018.12.08"]
[Round "3"]
[White "Jacko, Vladimir"]
[Black "Maslikova, Veronika"]
[Result "1-0"]
[ECO "A41"]
[WhiteElo "2330"]
[BlackElo "2249"]
[Annotator "NA"]
[PlyCount "75"]
[EventDate "2018.11.10"]
[EventType "team-tourn"]
[EventCountry "SVK"]
[SourceTitle "playchess.com"]
[Source "ChessBase"]
[SourceQuality "1"]
[WhiteTeam "Prakovce"]
[BlackTeam "Podhajska"]
[TimeControl "40/5400+30:1800+30"]

1. d4 {[%emt 0:00:20]} d6 {[%emt 0:01:09]} 2. e4 {[%emt 0:00:50]} Nd7 {[%emt 0:00:20]} 3. Nf3 {[%emt 0:02:41]} g6 {[%emt 0:05:14]} 4. Bc4 {[%emt 0:07:34]} e6 {[%emt 0:11:06]} 5. Nc3 {[%emt 0:09:20]} Bg7 {[%emt 0:20:25]} 6. Bg5 {[%emt 0:04:46]} Ne7 {[%emt 0:05:02]} 7. Qd2 {[%emt 0:02:56]} h6 {[%emt 0:00:50]} 8. Bf4 {[%emt 0:05:02]} a6 {[%emt 0:04:23]} 9. a4 {[%emt 0:01:16]} b6 {[%emt 0:11:01]} 10. O-O {[%emt 0:04:50]} g5 {[%emt 0:06:11]} 11. Be3 {[%emt 0:04:17]} Ng6 {[%emt 0:03:45]} 12. Ne2 {[%emt 0:04:57]} Nf6 {[%emt 0:12:16]} 13. Ng3 {[%emt 0:07:17]} Qe7 {[%emt 0:02:21]} 14. Qb4 {[%emt 0:15:07]} O-O {[%emt 0:01:41]} 15. Rfe1 {[%emt 0:05:36]} Re8 {[%emt 0:01:34]} 16. d5 {[%emt 0:06:08]} e5 {[%emt 0:01:28]} 17. a5 {[%emt 0:00:38]} b5 {[%emt 0:00:45]} 18. Bf1 {[%emt 0:00:06]} g4 {[%emt 0:01:38]} 19. Nd2 {[%emt 0:00:30]} Bd7 {[%emt 0:01:33]} 20. c4 {[%emt 0:01:33]} bxc4 {[%emt 0:00:19]} 21. Qxc4 {[%emt 0:02:57]} Nh4 {[%emt 0:01:13]} 22. Rec1 {[%emt 0:02:50]} Rec8 {[%emt 0:00:25]} 23. Rc3 {[%emt 0:02:10]} c5 {[%emt 0:01:25]} 24. Qa2 {[%emt 0:01:23]} Rcb8 {[%emt 0:00:49]} 25. Nc4 {[%emt 0:00:20]} Be8 {[%emt 0:02:12]} 26. Nb6 {[%emt 0:00:23]} Ra7 {[%emt 0:00:31]} 27. b4 {[%emt 0:00:50]} Nd7 {[%emt 0:01:08]} 28. Nxd7 {[%emt 0:00:58]} Qxd7 {[%emt 0:00:41]} 29. bxc5 {[%emt 0:00:23]} dxc5 {[%emt 0:00:06]} 30. Rxc5 {[%emt 0:01:19]} Raa8 {[%emt 0:01:25]} 31. Rc6 {[%emt 0:01:07]} Rc8 {[%emt 0:01:13]} 32. Rxa6 {[%emt 0:01:31]} Rxa6 {[%emt 0:00:21]} 33. Bxa6 {[%emt 0:00:02]} Rc3 {[%emt 0:00:49]} 34. Qd2 {[%emt 0:00:39]} Rb3 {[%emt 0:00:41]} 35. Bc4 {[%emt 0:00:12]} Rb8 {[%emt 0:00:31]} 36. a6 {[%emt 0:00:11]} Bf8 {[%emt 0:00:11]} 37. a7 {[%emt 0:00:21]} Ra8 {[%emt 0:00:03]} 38. d6 {[%emt 0:01:16]} 1-0

[Event "SVK ECo-C Extraliga 2018-19"]
[Site "Slovakia"]
[Date "2018.12.08"]
[Round "3"]
[White "Vojtek, Vladimir"]
[Black "Hausner, Ivan"]
[Result "0-1"]
[ECO "B21"]
[WhiteElo "2316"]
[BlackElo "2322"]
[Annotator "NA"]
[PlyCount "100"]
[EventDate "2018.11.10"]
[EventType "team-tourn"]
[EventCountry "SVK"]
[SourceTitle "playchess.com"]
[Source "ChessBase"]
[SourceQuality "1"]
[WhiteTeam "Dubnica"]
[BlackTeam "Liptovska"]
[TimeControl "40/5400+30:1800+30"]

1. e4 {[%emt 0:00:00]} c5 {[%emt 0:00:00]} 2. f4 {[%emt 0:00:00]} e6 {[%emt 0:00:26]} 3. Nf3 {[%emt 0:00:00]} Nc6 {[%emt 0:01:14]} 4. Bb5 {[%emt 0:00:42]} Nd4 {[%emt 0:00:42]} 5. Nxd4 {[%emt 0:01:14]} cxd4 {[%emt 0:00:05]} 6. Qf3 {[%emt 0:00:42]} a6 {[%emt 0:10:46]} 7. Ba4 {[%emt 0:01:30]} Qh4+ {[%emt 0:02:41]} 8. g3 {[%emt 0:11:24]} Qh3 {[%emt 0:00:04]} 9. c3 {[%emt 0:01:14]} Bc5 {[%emt 0:02:30]} 10. b4 {[%emt 0:02:13]} Ba7 {[%emt 0:00:05]} 11. Bb2 {[%emt 0:00:58]} Nf6 {[%emt 0:01:54]} 12. c4 {[%emt 0:14:07]} h5 {[%emt 0:07:28]} 13. Na3 {[%emt 0:13:46]} h4 {[%emt 0:06:43]} 14. O-O-O {[%emt 0:08:12]} Qg4 {[%emt 0:00:05]} 15. Qd3 {[%emt 0:02:28]} b5 {[%emt 0:01:33]} 16. cxb5 {[%emt 0:06:20]} Bb7 {[%emt 0:00:07]} 17. Rhe1 {[%emt 0:03:38]} hxg3 {[%emt 0:05:02]} 18. hxg3 {[%emt 0:03:47]} Rc8+ {[%emt 0:01:04]} 19. Kb1 {[%emt 0:00:41]} Rh3 {[%emt 0:03:06]} 20. bxa6 {[%emt 0:12:16]} Ba8 {[%emt 0:03:21]} 21. Nb5 {[%emt 0:02:31]} Rxg3 {[%emt 0:00:32]} 22. Nd6+ {[%emt 0:00:39]} Kf8 {[%emt 0:02:12]} 23. Qxg3 {[%emt 0:05:28]} Qxg3 {[%emt 0:00:06]} 24. Nxc8 {[%emt 0:00:02]} Bb8 {[%emt 0:01:32]} 25. d3 {[%emt 0:02:22]} Qxf4 {[%emt 0:01:32]} 26. Nb6 {[%emt 0:02:50]} Qd6 {[%emt 0:00:53]} 27. Nxa8 {[%emt 0:01:11]} Qxa6 {[%emt 0:00:13]} 28. Rc1 {[%emt 0:01:16]} Bf4 {[%emt 0:05:22]} 29. Rc4 {[%emt 0:00:27]} Qxa4 {[%emt 0:01:13]} 30. Nb6 {[%emt 0:00:27]} Qa6 {[%emt 0:01:59]} 31. Bxd4 {[%emt 0:00:15]} Qa3 {[%emt 0:00:43]} 32. Rd1 {[%emt 0:01:01]} Kg8 {[%emt 0:01:03]} 33. Bb2 {[%emt 0:00:28]} Qa6 {[%emt 0:00:22]} 34. Bxf6 {[%emt 0:00:56]} Qxb6 {[%emt 0:01:10]} 35. Bd4 {[%emt 0:00:38]} Qb7 {[%emt 0:00:13]} 36. a3 {[%emt 0:00:44]} g5 {[%emt 0:01:10]} 37. Rg1 {[%emt 0:01:06]} Kh7 {[%emt 0:00:31]} 38. Ka2 {[%emt 0:00:17]} d5 {[%emt 0:00:33]} 39. exd5 {[%emt 0:00:35]} Qxd5 {[%emt 0:00:06]} 40. Kb3 {[%emt 0:00:41]} e5 {[%emt 0:00:12]} 41. Bc3 {[%emt 0:00:54]} Qxd3 {[%emt 0:01:51]} 42. a4 {[%emt 0:02:37]} Be3 {[%emt 0:02:15]} 43. Rg2 {[%emt 0:03:09]} Qd1+ {[%emt 0:01:49]} 44. Rc2 {[%emt 0:00:25]} f6 {[%emt 0:00:34]} 45. b5 {[%emt 0:01:41]} g4 {[%emt 0:00:22]} 46. Kb2 {[%emt 0:03:38]} Qf3 {[%emt 0:01:05]} 47. Rh2+ {[%emt 0:08:55]} Kg6 {[%emt 0:00:09]} 48. Rh8 {[%emt 0:03:41]} g3 {[%emt 0:01:47]} 49. Rg8+ {[%emt 0:00:49]} Kf5 {[%emt 0:00:14]} 50. Rc6 {[%emt 0:01:18]} g2 {[%emt 0:03:01]} 0-1